[Event "Rapid Tournament"]
[Site "Biel, Switzerland"]
[Date "2021.07.25"]
[Round "3.2"]
[White "Kamsky, Gata"]
[Black "Alekseenko, Kirill"]
[Result "1-0"]
[TimeControl "15min + 5 sec per move"]
[WhiteTitle "GM"]
[BlackTitle "GM"]
[WhiteFideId "2000024"]
[BlackFideId "4135539"]
[WhiteElo "2701"]
[BlackElo "2661"]

1. g3 {[%clk 00:15:01]} {[%emt 00:00:07]} e5 {[%clk 00:15:05]} {[%emt
00:00:06]} 2. Bg2 {[%clk 00:15:03]} {[%emt 00:00:02]} Nc6 {[%clk 00:15:06]}
{[%emt 00:00:06]} 3. c4 {[%clk 00:14:46]} {[%emt 00:00:21]} g6 {[%clk
00:15:06]} {[%emt 00:00:05]} 4. Nc3 {[%clk 00:14:48]} {[%emt 00:00:03]} d6
{[%clk 00:15:02]} {[%emt 00:00:09]} 5. d3 {[%clk 00:14:39]} {[%emt 00:00:13]}
Bg7 {[%clk 00:14:27]} {[%emt 00:00:41]} 6. e4 {[%clk 00:14:06]} {[%emt
00:00:37]} Nf6 {[%clk 00:13:42]} {[%emt 00:00:50]} 7. Nge2 {[%clk 00:14:08]}
{[%emt 00:00:02]} h5 {[%clk 00:13:35]} {[%emt 00:00:13]} 8. h3 {[%clk
00:13:54]} {[%emt 00:00:17]} Nh7 {[%clk 00:12:31]} {[%emt 00:01:09]} 9. Be3
{[%clk 00:09:42]} {[%emt 00:04:17]} Nd4 {[%clk 00:11:34]} {[%emt 00:01:04]} 10.
f4 {[%clk 00:09:10]} {[%emt 00:00:36]} c6 {[%clk 00:11:11]} {[%emt 00:00:28]}
11. Qd2 {[%clk 00:08:33]} {[%emt 00:00:41]} Be6 {[%clk 00:10:39]} {[%emt
00:00:38]} 12. O-O {[%clk 00:07:42]} {[%emt 00:00:55]} Qd7 {[%clk 00:09:51]}
{[%emt 00:00:54]} 13. Kh2 {[%clk 00:07:43]} {[%emt 00:00:03]} O-O {[%clk
00:09:33]} {[%emt 00:00:25]} 14. Rf2 {[%clk 00:07:41]} {[%emt 00:00:06]} f5
{[%clk 00:09:21]} {[%emt 00:00:17]} 15. Raf1 {[%clk 00:07:25]} {[%emt
00:00:20]} Rae8 {[%clk 00:09:15]} {[%emt 00:00:12]} 16. fxe5 {[%clk 00:06:58]}
{[%emt 00:00:33]} dxe5 {[%clk 00:09:03]} {[%emt 00:00:17]} 17. exf5 {[%clk
00:06:56]} {[%emt 00:00:07]} Nxf5 {[%clk 00:08:27]} {[%emt 00:00:41]} 18. Ne4
{[%clk 00:06:02]} {[%emt 00:00:58]} b6 {[%clk 00:08:31]} {[%emt 00:00:02]} 19.
N2c3 {[%clk 00:05:26]} {[%emt 00:00:40]} h4 {[%clk 00:06:05]} {[%emt 00:02:32]}
20. gxh4 {[%clk 00:04:37]} {[%emt 00:00:53]} Nxh4 {[%clk 00:05:53]} {[%emt
00:00:18]} 21. Rxf8+ {[%clk 00:04:36]} {[%emt 00:00:06]} Rxf8 {[%clk 00:05:46]}
{[%emt 00:00:11]} 22. Rxf8+ {[%clk 00:04:37]} {[%emt 00:00:04]} Bxf8 {[%clk
00:05:39]} {[%emt 00:00:13]} 23. Nf2 {[%clk 00:03:15]} {[%emt 00:01:26]} Nxg2
{[%clk 00:03:50]} {[%emt 00:01:54]} 24. Kxg2 {[%emt 00:00:01]} Nf6 25. Bg5
{[%clk 00:03:14]} {[%emt 00:00:10]} Nh5 {[%clk 00:03:04]} {[%emt 00:00:56]} 26.
Nce4 {[%clk 00:03:17]} {[%emt 00:00:02]} Bg7 {[%clk 00:02:49]} {[%emt
00:00:21]} 27. b3 {[%clk 00:03:18]} {[%emt 00:00:03]} Bf5 {[%clk 00:02:48]}
{[%emt 00:00:07]} 28. Qe3 {[%clk 00:03:18]} {[%emt 00:00:05]} Qd4 {[%clk
00:02:09]} {[%emt 00:00:45]} 29. Qxd4 {[%clk 00:03:20]} {[%emt 00:00:02]} exd4
{[%clk 00:02:13]} {[%emt 00:00:01]} 30. Kf3 {[%clk 00:03:24]} {[%emt 00:00:01]}
Bd7 {[%clk 00:01:50]} {[%emt 00:00:28]} 31. Be7 {[%clk 00:02:40]} {[%emt
00:00:49]} Kf7 {[%clk 00:00:49]} {[%emt 00:01:06]} 32. Bd6 {[%clk 00:02:43]}
{[%emt 00:00:02]} b5 {[%clk 00:00:49]} {[%emt 00:00:06]} 33. Bb8 {[%clk
00:02:28]} {[%emt 00:00:19]} a6 {[%clk 00:00:51]} {[%emt 00:00:03]} 34. Ng4
{[%clk 00:02:22]} {[%emt 00:00:10]} bxc4 {[%clk 00:00:36]} {[%emt 00:00:22]} 35.
bxc4 {[%clk 00:02:25]} {[%emt 00:00:02]} Ke7 {[%clk 00:00:36]} {[%emt
00:00:05]} 36. a4 {[%clk 00:02:15]} {[%emt 00:00:15]} Bc8 {[%clk 00:00:39]}
{[%emt 00:00:02]} 37. a5 {[%clk 00:02:15]} {[%emt 00:00:05]} Ke6 {[%clk
00:00:35]} {[%emt 00:00:09]} 38. h4 {[%clk 00:02:10]} {[%emt 00:00:11]} Ke7
{[%clk 00:00:21]} {[%emt 00:00:20]} 39. Ne5 {[%clk 00:02:09]} {[%emt 00:00:06]}
Bf5 {[%clk 00:00:08]} {[%emt 00:00:18]} 40. Nxc6+ {[%clk 00:02:06]} {[%emt
00:00:08]} Kd7 {[%clk 00:00:12]} {[%emt 00:00:01]} 41. Nb4 {[%clk 00:02:05]}
{[%emt 00:00:06]} Nf6 {[%clk 00:00:16]} {[%emt 00:00:01]} 42. Nc5+ {[%clk
00:01:56]} {[%emt 00:00:14]} Kc8 {[%clk 00:00:18]} {[%emt 00:00:03]} 43. Nbxa6
{[%clk 00:01:56]} {[%emt 00:00:05]} Bf8 {[%clk 00:00:09]} {[%emt 00:00:14]} 44.
Be5 {[%clk 00:01:56]} {[%emt 00:00:05]} Nd7 {[%clk 00:00:07]} {[%emt 00:00:08]}
45. Bxd4 {[%clk 00:01:51]} {[%emt 00:00:10]} Bxc5 {[%clk 00:00:09]} {[%emt
00:00:04]} 46. Bxc5 {[%clk 00:01:15]} {[%emt 00:00:41]} Kb7 {[%clk 00:00:13]}
47. Nb4 {[%clk 00:01:18]} {[%emt 00:00:01]} Nxc5 {[%clk 00:00:17]} {[%emt
00:00:01]} 48. d4 {[%clk 00:01:22]} {[%emt 00:00:01]} Nb3 {[%clk 00:00:20]}
{[%emt 00:00:02]} 49. a6+ {[%clk 00:01:26]} Ka7 {[%clk 00:00:18]} {[%emt
00:00:07]} 50. Ke3 {[%clk 00:01:29]} {[%emt 00:00:01]} Na5 {[%clk 00:00:10]}
{[%emt 00:00:13]} 51. c5 {[%clk 00:01:32]} {[%emt 00:00:02]} Nb3 {[%clk
00:00:07]} {[%emt 00:00:08]} 52. c6 {[%clk 00:01:29]} {[%emt 00:00:07]} Kb6
{[%clk 00:00:10]} {[%emt 00:00:03]} 53. d5 {[%clk 00:01:32]} {[%emt 00:00:02]}
Nc5 {[%clk 00:00:13]} {[%emt 00:00:02]} 54. d6 {[%clk 00:01:34]} {[%emt
00:00:02]} Nxa6 {[%clk 00:00:10]} {[%emt 00:00:08]} 55. d7 {[%clk 00:01:38]}
{[%emt 00:00:01]} Bxd7 {[%clk 00:00:06]} {[%emt 00:00:09]} 56. cxd7 {[%clk
00:01:42]} {[%emt 00:00:01]} Kc7 {[%clk 00:00:10]} {[%emt 00:00:01]} 57. Nxa6+
{[%clk 00:01:45]} {[%emt 00:00:01]} 1-0

[Event "Rapid Tournament"]
[Site "Biel, Switzerland"]
[Date "2021.07.25"]
[Round "3.3"]
[White "Keymer, Vincent"]
[Black "Gelfand, Boris"]
[Result "0-1"]
[TimeControl "15min + 5 sec per move"]
[WhiteTitle "GM"]
[BlackTitle "GM"]
[WhiteFideId "12940690"]
[BlackFideId "2805677"]
[WhiteElo "2543"]
[BlackElo "2702"]

1. d4 {[%clk 00:15:08]} {[%emt 00:00:02]} Nf6 {[%clk 00:15:09]} {[%emt
00:00:01]} 2. c4 {[%clk 00:15:12]} e6 {[%clk 00:15:13]} 3. Nf3 {[%clk
00:15:16]} d5 {[%clk 00:15:17]} 4. Nc3 {[%clk 00:15:20]} c6 {[%clk 00:15:22]}
{[%emt 00:00:01]} 5. Bg5 {[%clk 00:15:24]} h6 {[%clk 00:15:26]} 6. Bxf6 {[%clk
00:15:28]} {[%emt 00:00:02]} Qxf6 {[%clk 00:15:29]} {[%emt 00:00:01]} 7. e3
{[%clk 00:15:32]} Nd7 {[%clk 00:15:24]} {[%emt 00:00:10]} 8. Be2 {[%clk
00:15:35]} {[%emt 00:00:02]} dxc4 {[%clk 00:15:16]} {[%emt 00:00:13]} 9. Bxc4
{[%clk 00:14:42]} {[%emt 00:00:58]} g6 {[%clk 00:15:02]} {[%emt 00:00:19]} 10.
O-O {[%clk 00:12:56]} {[%emt 00:01:51]} Bg7 {[%clk 00:15:06]} 11. e4 {[%clk
00:13:00]} {[%emt 00:00:01]} O-O {[%clk 00:15:02]} {[%emt 00:00:09]} 12. Re1
{[%clk 00:10:58]} {[%emt 00:02:06]} e5 {[%clk 00:14:46]} {[%emt 00:00:21]} 13.
d5 {[%clk 00:11:02]} {[%emt 00:00:02]} Rd8 {[%clk 00:14:50]} 14. h3 {[%clk
00:10:17]} {[%emt 00:00:49]} b5 {[%clk 00:14:30]} {[%emt 00:00:25]} 15. dxc6
{[%clk 00:08:53]} {[%emt 00:01:29]} bxc4 {[%clk 00:14:34]} {[%emt 00:00:02]} 16.
Nd5 {[%clk 00:08:57]} {[%emt 00:00:01]} Qe6 {[%clk 00:14:29]} {[%emt 00:00:09]}
17. cxd7 {[%clk 00:08:08]} {[%emt 00:00:54]} Rxd7 {[%clk 00:14:33]} {[%emt
00:00:01]} 18. Qc2 {[%clk 00:06:55]} {[%emt 00:01:18]} Bb7 {[%clk 00:14:14]}
{[%emt 00:00:23]} 19. Ne3 {[%clk 00:06:51]} {[%emt 00:00:09]} Rc8 {[%clk
00:13:12]} {[%emt 00:01:07]} 20. Rad1 {[%clk 00:06:36]} {[%emt 00:00:21]} Rd3
{[%clk 00:07:50]} {[%emt 00:05:28]} 21. Rxd3 {[%clk 00:02:33]} {[%emt
00:04:08]} cxd3 {[%clk 00:07:53]} {[%emt 00:00:01]} 22. Qxd3 {[%clk 00:02:37]}
{[%emt 00:00:01]} Qxa2 {[%clk 00:07:54]} {[%emt 00:00:04]} 23. b3 {[%clk
00:02:18]} {[%emt 00:00:24]} Qa5 {[%clk 00:07:00]} {[%emt 00:00:59]} 24. Nc4
{[%clk 00:02:10]} {[%emt 00:00:13]} Qc7 {[%clk 00:06:38]} {[%emt 00:00:27]} 25.
Qd6 {[%clk 00:01:22]} {[%emt 00:00:53]} Qxd6 {[%clk 00:05:56]} {[%emt
00:00:47]} 26. Nxd6 {[%emt 00:00:01]} Rb8 27. Ra1 {[%clk 00:00:54]} {[%emt
00:00:37]} Bf8 {[%clk 00:05:49]} {[%emt 00:00:17]} 28. Nxb7 {[%clk 00:00:33]}
{[%emt 00:00:26]} Rxb7 {[%clk 00:05:53]} {[%emt 00:00:01]} 29. Nxe5 {[%clk
00:00:31]} {[%emt 00:00:06]} Rxb3 {[%clk 00:05:22]} {[%emt 00:00:36]} 30. Rxa7
{[%clk 00:00:14]} {[%emt 00:00:23]} Bd6 {[%clk 00:04:37]} {[%emt 00:00:50]} 31.
Ra8+ {[%clk 00:00:12]} {[%emt 00:00:07]} Kg7 {[%clk 00:04:41]} 32. f4 {[%clk
00:00:16]} {[%emt 00:00:01]} Rb4 {[%clk 00:02:53]} {[%emt 00:01:52]} 33. Rd8
{[%clk 00:00:12]} {[%emt 00:00:09]} Bc5+ {[%clk 00:02:49]} {[%emt 00:00:09]} 34.
Kh2 {[%clk 00:00:09]} {[%emt 00:00:07]} Rxe4 {[%clk 00:02:48]} {[%emt
00:00:06]} 35. Nd3 {[%clk 00:00:10]} {[%emt 00:00:04]} Bd4 {[%clk 00:02:13]}
{[%emt 00:00:40]} 36. Rd5 {[%clk 00:00:13]} {[%emt 00:00:02]} Kf6 {[%clk
00:01:27]} {[%emt 00:00:51]} 37. h4 {[%clk 00:00:08]} {[%emt 00:00:10]} h5
{[%clk 00:01:09]} {[%emt 00:00:22]} 38. Rb5 {[%clk 00:00:07]} {[%emt 00:00:07]}
Re3 {[%clk 00:01:01]} {[%emt 00:00:14]} 39. Nb4 {[%clk 00:00:08]} {[%emt
00:00:04]} Ke6 {[%clk 00:01:00]} {[%emt 00:00:06]} 40. Nd5 {[%clk 00:00:08]}
{[%emt 00:00:04]} Rd3 {[%clk 00:00:54]} {[%emt 00:00:11]} 41. Nc7+ {[%clk
00:00:08]} {[%emt 00:00:06]} Kd7 {[%clk 00:00:49]} {[%emt 00:00:10]} 42. Nd5
{[%clk 00:00:10]} {[%emt 00:00:03]} Bf2 {[%clk 00:00:40]} {[%emt 00:00:14]} 43.
Nf6+ {[%clk 00:00:08]} {[%emt 00:00:08]} Kc6 {[%clk 00:00:39]} {[%emt
00:00:06]} 44. Rb1 {[%clk 00:00:07]} {[%emt 00:00:06]} Bxh4 {[%clk 00:00:35]}
{[%emt 00:00:09]} 45. Ne4 {[%clk 00:00:08]} {[%emt 00:00:04]} Kd5 {[%clk
00:00:30]} {[%emt 00:00:10]} 46. Ng5 {[%clk 00:00:08]} {[%emt 00:00:05]} Bg3+
{[%clk 00:00:29]} {[%emt 00:00:06]} 47. Kg1 {[%clk 00:00:10]} {[%emt 00:00:03]}
Bxf4 {[%clk 00:00:32]} {[%emt 00:00:02]} 48. Nxf7 {[%clk 00:00:11]} {[%emt
00:00:04]} Ke6 {[%clk 00:00:28]} {[%emt 00:00:09]} 49. Rb7 {[%clk 00:00:10]}
{[%emt 00:00:06]} g5 {[%clk 00:00:22]} {[%emt 00:00:10]} 50. Nh8 {[%clk
00:00:06]} {[%emt 00:00:09]} Bg3 {[%clk 00:00:13]} {[%emt 00:00:13]} 51. Rb1
{[%clk 00:00:07]} {[%emt 00:00:04]} g4 {[%clk 00:00:11]} {[%emt 00:00:08]} 52.
Ng6 {[%clk 00:00:09]} {[%emt 00:00:04]} Kf6 {[%clk 00:00:10]} {[%emt 00:00:06]}
53. Nf8 {[%clk 00:00:07]} {[%emt 00:00:07]} Bd6 {[%clk 00:00:08]} {[%emt
00:00:07]} 54. Rf1+ {[%clk 00:00:08]} {[%emt 00:00:03]} Kg5 {[%clk 00:00:09]}
{[%emt 00:00:05]} 55. Nh7+ {[%clk 00:00:08]} {[%emt 00:00:06]} Kh4 {[%clk
00:00:11]} {[%emt 00:00:02]} 56. Nf6 {[%clk 00:00:12]} Be5 {[%clk 00:00:13]}
{[%emt 00:00:04]} 57. Ne4 {[%clk 00:00:08]} {[%emt 00:00:09]} Re3 {[%clk
00:00:17]} {[%emt 00:00:01]} 58. Nf2 {[%clk 00:00:08]} {[%emt 00:00:06]} Bd4
{[%clk 00:00:17]} {[%emt 00:00:05]} 59. Rd1 {[%clk 00:00:11]} {[%emt 00:00:01]}
Bb6 {[%clk 00:00:17]} {[%emt 00:00:04]} 60. Kh1 {[%clk 00:00:07]} {[%emt
00:00:09]} Kg3 {[%clk 00:00:17]} {[%emt 00:00:05]} 61. Nd3 {[%clk 00:00:10]}
{[%emt 00:00:03]} Re2 {[%clk 00:00:18]} {[%emt 00:00:04]} 62. Nb4 {[%clk
00:00:08]} {[%emt 00:00:06]} Be3 {[%clk 00:00:12]} {[%emt 00:00:10]} 63. Nd5
{[%clk 00:00:08]} {[%emt 00:00:05]} Bg5 {[%clk 00:00:08]} {[%emt 00:00:08]} 64.
Nc3 {[%clk 00:00:08]} {[%emt 00:00:06]} Re3 {[%clk 00:00:11]} {[%emt 00:00:01]}
65. Nd5 {[%clk 00:00:08]} {[%emt 00:00:05]} Re5 {[%clk 00:00:15]} {[%emt
00:00:01]} 66. Nc3 {[%clk 00:00:08]} {[%emt 00:00:05]} Kf2 {[%clk 00:00:17]}
{[%emt 00:00:02]} 67. Rb1 {[%clk 00:00:08]} {[%emt 00:00:06]} Bd2 {[%clk
00:00:13]} {[%emt 00:00:08]} 68. Nb5 {[%clk 00:00:07]} {[%emt 00:00:07]} h4
{[%clk 00:00:13]} {[%emt 00:00:05]} 69. Nd6 {[%clk 00:00:06]} {[%emt 00:00:06]}
Bf4 {[%clk 00:00:13]} {[%emt 00:00:05]} 70. Rb2+ {[%clk 00:00:09]} {[%emt
00:00:02]} Kf1 {[%clk 00:00:13]} {[%emt 00:00:05]} 71. Rb1+ {[%clk 00:00:13]}
{[%emt 00:00:01]} Ke2 {[%clk 00:00:16]} {[%emt 00:00:02]} 72. Rb4 {[%clk
00:00:10]} {[%emt 00:00:09]} Bg3 {[%clk 00:00:09]} {[%emt 00:00:11]} 73. Re4+
{[%clk 00:00:14]} Kf2 {[%clk 00:00:09]} {[%emt 00:00:05]} 74. Rxe5 {[%clk
00:00:16]} {[%emt 00:00:03]} Bxe5 {[%clk 00:00:14]} 75. Nf5 {[%clk 00:00:17]}
{[%emt 00:00:05]} Bf6 {[%clk 00:00:15]} {[%emt 00:00:03]} 76. Kh2 {[%clk
00:00:18]} {[%emt 00:00:04]} Bg5 {[%clk 00:00:16]} {[%emt 00:00:03]} 77. Kh1
{[%clk 00:00:22]} {[%emt 00:00:02]} Bd8 {[%clk 00:00:17]} {[%emt 00:00:04]} 78.
Kh2 {[%clk 00:00:24]} {[%emt 00:00:03]} Bg5 {[%clk 00:00:18]} {[%emt 00:00:04]}
79. Kh1 {[%clk 00:00:26]} {[%emt 00:00:03]} Ke2 {[%clk 00:00:23]} 80. Kh2
{[%clk 00:00:19]} {[%emt 00:00:12]} Kd3 {[%clk 00:00:26]} {[%emt 00:00:04]} 81.
Kh1 {[%clk 00:00:11]} {[%emt 00:00:11]} Ke4 {[%clk 00:00:30]} 82. Nxh4 {[%clk
00:00:15]} {[%emt 00:00:02]} Bxh4 {[%clk 00:00:34]} 83. Kh2 {[%clk 00:00:19]}
Ke3 {[%clk 00:00:30]} {[%emt 00:00:09]} 84. Kh1 {[%clk 00:00:23]} {[%emt
00:00:01]} Kf2 {[%clk 00:00:30]} {[%emt 00:00:03]} 85. Kh2 {[%clk 00:00:27]}
{[%emt 00:00:03]} Bg3 {[%clk 00:00:32]} {[%emt 00:00:03]} 86. Kh1 {[%clk
00:00:31]} Bc7 {[%clk 00:00:36]} 0-1

[Event "Rapid Tournament"]
[Site "Biel, Switzerland"]
[Date "2021.07.25"]
[Round "3.4"]
[White "Nihal, Sarin"]
[Black "Pichot, Alan"]
[Result "1/2-1/2"]
[TimeControl "15min + 5 sec per move"]
[WhiteTitle "GM"]
[BlackTitle "GM"]
[WhiteFideId "25092340"]
[BlackFideId "110973"]
[WhiteElo "2418"]
[BlackElo "2533"]

1. d4 {[%clk 00:15:08]} {[%emt 00:00:01]} Nf6 {[%clk 00:15:08]} {[%emt
00:00:02]} 2. Bf4 {[%clk 00:15:11]} {[%emt 00:00:02]} d5 {[%clk 00:15:11]}
{[%emt 00:00:02]} 3. e3 {[%clk 00:15:14]} {[%emt 00:00:03]} c5 {[%clk
00:15:14]} {[%emt 00:00:02]} 4. c3 {[%clk 00:15:01]} {[%emt 00:00:18]} Qb6
{[%clk 00:14:15]} {[%emt 00:01:03]} 5. Qb3 {[%clk 00:14:23]} {[%emt 00:00:43]}
c4 {[%clk 00:13:19]} {[%emt 00:01:02]} 6. Qc2 {[%clk 00:14:25]} {[%emt
00:00:03]} g6 {[%clk 00:13:22]} {[%emt 00:00:02]} 7. Nd2 {[%clk 00:14:24]}
{[%emt 00:00:05]} Bg7 {[%clk 00:12:31]} {[%emt 00:00:56]} 8. Ngf3 {[%clk
00:14:11]} {[%emt 00:00:18]} Bf5 {[%clk 00:12:14]} {[%emt 00:00:23]} 9. Qc1
{[%clk 00:14:12]} {[%emt 00:00:03]} O-O {[%clk 00:12:15]} {[%emt 00:00:04]} 10.
Be2 {[%clk 00:14:04]} {[%emt 00:00:14]} Nc6 {[%clk 00:12:15]} {[%emt 00:00:05]}
11. h3 {[%clk 00:13:56]} {[%emt 00:00:12]} Rfc8 {[%clk 00:12:08]} {[%emt
00:00:12]} 12. O-O {[%clk 00:13:58]} {[%emt 00:00:03]} Qd8 {[%clk 00:11:56]}
{[%emt 00:00:17]} 13. Re1 {[%clk 00:13:39]} {[%emt 00:00:23]} b5 {[%clk
00:11:43]} {[%emt 00:00:18]} 14. Bd1 {[%clk 00:13:43]} {[%emt 00:00:01]} a5
{[%clk 00:10:50]} {[%emt 00:00:58]} 15. Bc2 {[%clk 00:13:28]} {[%emt 00:00:20]}
b4 {[%clk 00:08:59]} {[%emt 00:01:57]} 16. Ne5 {[%clk 00:12:41]} {[%emt
00:00:52]} Bxc2 {[%clk 00:07:16]} {[%emt 00:01:47]} 17. Qxc2 {[%clk 00:12:43]}
{[%emt 00:00:03]} Qb6 {[%clk 00:07:17]} {[%emt 00:00:05]} 18. Nxc6 {[%clk
00:09:18]} {[%emt 00:03:29]} Rxc6 {[%clk 00:07:14]} {[%emt 00:00:08]} 19. Be5
{[%clk 00:09:10]} {[%emt 00:00:13]} e6 {[%clk 00:06:29]} {[%emt 00:00:51]} 20.
e4 {[%clk 00:04:32]} {[%emt 00:04:42]} dxe4 {[%clk 00:06:21]} {[%emt 00:00:13]}
21. Bxf6 {[%clk 00:03:17]} {[%emt 00:01:21]} Bxf6 {[%clk 00:06:25]} {[%emt
00:00:01]} 22. Nxe4 {[%clk 00:03:21]} Be7 {[%clk 00:06:00]} {[%emt 00:00:30]}
23. Rad1 {[%clk 00:03:12]} {[%emt 00:00:14]} Qb5 {[%clk 00:05:55]} {[%emt
00:00:10]} 24. Nd2 {[%clk 00:03:05]} {[%emt 00:00:12]} Rd8 {[%clk 00:05:32]}
{[%emt 00:00:27]} 25. Re5 {[%clk 00:02:54]} {[%emt 00:00:16]} Rd5 {[%clk
00:05:36]} {[%emt 00:00:02]} 26. Rxd5 {[%clk 00:02:58]} {[%emt 00:00:01]} exd5
{[%clk 00:05:01]} {[%emt 00:00:39]} 27. Re1 {[%clk 00:03:01]} {[%emt 00:00:02]}
Bf6 {[%clk 00:05:05]} {[%emt 00:00:02]} 28. Nf3 {[%clk 00:02:10]} {[%emt
00:00:57]} Rc8 {[%clk 00:04:24]} {[%emt 00:00:46]} 29. g4 {[%clk 00:01:59]}
{[%emt 00:00:16]} Re8 {[%clk 00:03:56]} {[%emt 00:00:32]} 30. Rxe8+ {[%emt
00:01:02]} 1/2-1/2

[ePGN "0.1;DGT LiveChess/2.2.5"]

[Event "Rapid Tournament"]
[Site "Biel, Switzerland"]
[Date "2021.07.25"]
[Round "4.1"]
[White "Nihal, Sarin"]
[Black "Studer, Noël"]
[Result "0-1"]
[TimeControl "15min + 5 sec per move"]
[WhiteTitle "GM"]
[BlackTitle "GM"]
[WhiteFideId "25092340"]
[BlackFideId "1319620"]
[WhiteElo "2418"]
[BlackElo "2431"]

1. b3 {[%clk 00:15:09]} d5 {[%clk 00:15:08]} {[%emt 00:00:03]} 2. Bb2 {[%clk
00:15:12]} {[%emt 00:00:02]} Bf5 {[%clk 00:15:11]} {[%emt 00:00:01]} 3. d3
{[%clk 00:15:16]} {[%emt 00:00:01]} e6 {[%clk 00:15:10]} {[%emt 00:00:07]} 4.
Nd2 {[%clk 00:15:19]} {[%emt 00:00:01]} Nf6 {[%clk 00:15:13]} {[%emt 00:00:02]}
5. g3 {[%clk 00:15:23]} {[%emt 00:00:02]} h6 {[%clk 00:15:07]} {[%emt
00:00:12]} 6. Bg2 {[%clk 00:15:26]} Be7 {[%clk 00:15:01]} {[%emt 00:00:10]} 7.
e4 {[%clk 00:15:30]} {[%emt 00:00:02]} Bh7 {[%clk 00:15:05]} 8. Nh3 {[%clk
00:15:33]} {[%emt 00:00:01]} a5 {[%clk 00:14:50]} {[%emt 00:00:21]} 9. a3
{[%clk 00:15:34]} {[%emt 00:00:05]} O-O {[%clk 00:13:36]} {[%emt 00:01:18]} 10.
O-O {[%clk 00:15:35]} {[%emt 00:00:03]} a4 {[%clk 00:13:35]} {[%emt 00:00:07]}
11. b4 {[%clk 00:15:33]} {[%emt 00:00:07]} c5 {[%clk 00:13:37]} {[%emt
00:00:03]} 12. bxc5 {[%clk 00:13:01]} {[%emt 00:02:37]} Bxc5 {[%clk 00:12:05]}
{[%emt 00:01:37]} 13. exd5 {[%clk 00:12:41]} {[%emt 00:00:25]} Nxd5 {[%clk
00:12:04]} {[%emt 00:00:06]} 14. d4 {[%clk 00:10:19]} {[%emt 00:02:26]} Be7
{[%clk 00:06:43]} {[%emt 00:05:27]} 15. c4 {[%clk 00:10:21]} {[%emt 00:00:03]}
Qb6 {[%clk 00:06:39]} {[%emt 00:00:09]} 16. Ra2 {[%clk 00:09:08]} {[%emt
00:01:17]} Nf6 {[%clk 00:06:35]} {[%emt 00:00:09]} 17. Re1 {[%clk 00:08:40]}
{[%emt 00:00:33]} Nbd7 {[%clk 00:05:53]} {[%emt 00:00:47]} 18. Bc3 {[%clk
00:07:40]} {[%emt 00:01:04]} Qc7 {[%clk 00:05:43]} {[%emt 00:00:16]} 19. Rb2
{[%clk 00:07:12]} {[%emt 00:00:32]} Nb6 {[%clk 00:05:39]} {[%emt 00:00:09]} 20.
Qa1 {[%clk 00:06:19]} {[%emt 00:00:59]} Ra7 {[%clk 00:04:43]} {[%emt 00:01:01]}
21. Bb4 {[%clk 00:06:14]} {[%emt 00:00:10]} Nc8 {[%clk 00:04:38]} {[%emt
00:00:10]} 22. Nf4 {[%clk 00:06:05]} {[%emt 00:00:13]} Rd8 {[%clk 00:04:37]}
{[%emt 00:00:07]} 23. d5 {[%clk 00:05:09]} {[%emt 00:01:01]} e5 {[%clk
00:03:36]} {[%emt 00:01:06]} 24. Ne2 {[%clk 00:05:11]} {[%emt 00:00:02]} Bxb4
{[%clk 00:01:23]} {[%emt 00:02:19]} 25. Rxb4 {[%clk 00:04:51]} {[%emt
00:00:25]} Nd6 {[%clk 00:01:26]} {[%emt 00:00:01]} 26. Qxe5 {[%clk 00:03:26]}
{[%emt 00:01:29]} Nd7 {[%clk 00:01:31]} 27. Qc3 {[%clk 00:01:27]} {[%emt
00:02:05]} Nc5 {[%clk 00:01:31]} {[%emt 00:00:05]} 28. Nf4 {[%clk 00:01:30]}
{[%emt 00:00:01]} Raa8 {[%clk 00:01:01]} {[%emt 00:00:36]} 29. Nh5 {[%clk
00:01:21]} {[%emt 00:00:14]} f6 {[%clk 00:01:05]} 30. Nf4 {[%clk 00:01:25]} Bf5
{[%clk 00:00:57]} {[%emt 00:00:15]} 31. Ne6 {[%clk 00:00:41]} {[%emt 00:00:49]}
Qe7 {[%clk 00:00:31]} {[%emt 00:00:31]} 32. Qe3 {[%clk 00:00:18]} {[%emt
00:00:28]} Nd3 {[%clk 00:00:08]} {[%emt 00:00:29]} 33. Nxd8 {[%clk 00:00:11]}
{[%emt 00:00:11]} Qxe3 {[%clk 00:00:09]} {[%emt 00:00:04]} 34. Rxe3 {[%clk
00:00:14]} Nxb4 {[%clk 00:00:13]} {[%emt 00:00:01]} 35. Nxb7 {[%clk 00:00:07]}
{[%emt 00:00:13]} Nxb7 {[%clk 00:00:06]} {[%emt 00:00:12]} 36. axb4 {[%clk
00:00:11]} a3 {[%clk 00:00:10]} {[%emt 00:00:02]} 37. Nb3 {[%clk 00:00:13]}
{[%emt 00:00:03]} Ra4 {[%clk 00:00:10]} {[%emt 00:00:05]} 38. c5 {[%clk
00:00:06]} {[%emt 00:00:12]} Rxb4 {[%clk 00:00:15]} 39. d6 {[%clk 00:00:10]}
{[%emt 00:00:01]} a2 {[%clk 00:00:12]} {[%emt 00:00:07]} 40. Bd5+ {[%clk
00:00:13]} {[%emt 00:00:02]} Kh7 {[%clk 00:00:17]} {[%emt 00:00:01]} 41. Kg2
{[%clk 00:00:06]} {[%emt 00:00:12]} Nxc5 {[%clk 00:00:16]} {[%emt 00:00:06]} 42.
Na1 {[%clk 00:00:08]} {[%emt 00:00:03]} Rb1 {[%clk 00:00:19]} {[%emt 00:00:02]}
43. Bxa2 {[%clk 00:00:06]} {[%emt 00:00:07]} Rxa1 {[%clk 00:00:23]} {[%emt
00:00:01]} 44. Bc4 {[%clk 00:00:06]} {[%emt 00:00:05]} Rd1 {[%clk 00:00:26]}
{[%emt 00:00:02]} 45. Rc3 {[%clk 00:00:06]} {[%emt 00:00:05]} Ne4 {[%clk
00:00:22]} {[%emt 00:00:09]} 46. Re3 {[%clk 00:00:06]} {[%emt 00:00:05]} Nxd6
{[%clk 00:00:24]} {[%emt 00:00:03]} 47. Be2 {[%clk 00:00:09]} {[%emt 00:00:02]}
Rd4 {[%clk 00:00:28]} {[%emt 00:00:02]} 48. f3 {[%clk 00:00:12]} {[%emt
00:00:02]} Bg6 {[%clk 00:00:23]} {[%emt 00:00:10]} 49. Rc3 {[%clk 00:00:16]}
{[%emt 00:00:01]} Rd2 {[%clk 00:00:26]} {[%emt 00:00:02]} 50. Kf1 {[%clk
00:00:20]} Nf5 {[%clk 00:00:27]} {[%emt 00:00:04]} 51. Ke1 {[%clk 00:00:20]}
{[%emt 00:00:04]} Rb2 {[%clk 00:00:32]} {[%emt 00:00:01]} 52. Rc4 {[%clk
00:00:07]} {[%emt 00:00:18]} Ne3 {[%clk 00:00:28]} {[%emt 00:00:08]} 53. Rc8
{[%clk 00:00:09]} {[%emt 00:00:02]} Nc2+ {[%clk 00:00:31]} {[%emt 00:00:02]} 54.
Kf1 {[%clk 00:00:13]} Nd4 {[%clk 00:00:32]} {[%emt 00:00:04]} 55. Bc4 {[%clk
00:00:17]} h5 {[%clk 00:00:34]} {[%emt 00:00:04]} 56. h4 {[%clk 00:00:15]}
{[%emt 00:00:07]} Nxf3 {[%clk 00:00:33]} {[%emt 00:00:06]} 57. Bg8+ {[%clk
00:00:19]} {[%emt 00:00:01]} Kh6 {[%clk 00:00:38]} {[%emt 00:00:01]} 58. Bc4
{[%clk 00:00:23]} Nd2+ {[%clk 00:00:39]} {[%emt 00:00:05]} 59. Ke1 {[%clk
00:00:27]} Nxc4 {[%clk 00:00:42]} {[%emt 00:00:03]} 0-1